Cogmind - Beta 9.4 *** ADVENTURER MODE // 2020.08.07 @ 23:25:25 Player: Scyralis Result: Self-destructed Performance ------------- Evolutions (7) 3500 Regions Visited (13) 2600 Robots Destroyed (475) 2375 Value Destroyed (17596) 17596 Prototype IDs (12) 240 Alien Tech Used (0) 0 Bonus (9571) 9571 TOTAL SCORE: 35882 Bonus ------- Triggered High Security 500 High Alert Combat Kills 7216 Follower Combat Kills 2016 Met R17 at Cetus 500 Friendly Fire -661 Cogmind --------- Core Integrity 1300/1300 Matter 530/550 Energy 0/100 System Corruption 12% Temperature Cool (0) Movement Treading (160) Location -3/Research Parts ------- > --- POWER (2) -------- (None) > --- PROPULSION (2) --- Centrium Heavy Treads > --- UTILITY (12) ----- Advanced Coolant Injector Matter Compressor Enhanced Optical Array Advanced Targeting Computer Improved Core Analyzer Recoil Nullifier Improved Phase Shifter Improved Remote Shield Advanced Hacking Suite > --- WEAPON (5) ------- KE Penetrator Railgun > --- INVENTORY (4) ---- Improved Remote Shield Advanced Recalibrator Peak State ------------ > --- POWER ------------ Light Antimatter Reactor Light Quantum Reactor > --- PROPULSION ------- Centrium Heavy Treads > --- UTILITY ---------- Advanced Coolant Injector Matter Compressor Enhanced Optical Array Advanced Targeting Computer Advanced Target Analyzer Improved Core Analyzer Recoil Nullifier Improved Phase Shifter Advanced Thermal Shield Improved Remote Shield Advanced Hacking Suite High-powered Tractor Beam > --- WEAPON ----------- KE Penetrator Improved KE Penetrator Improved KE Penetrator Improved KE Penetrator Improved KE Penetrator > --- INVENTORY -------- Improved Remote Shield Advanced Recalibrator Railgun [Rating: 141] Favorites ----------- Power Heavy Ion Engine Engine Heavy Ion Engine Power Core Reinforced Fission Core Reactor Light Quantum Reactor Propulsion Light Treads Treads Light Treads Leg Flexi-carbon Leg Wheel Wheel Utility Advanced Targeting Computer Device High-powered Tractor Beam Storage Matter Compressor Processor Advanced Targeting Computer Hackware Hacking Suite Protection Improved Medium Armor Plating Weapon Improved KE Penetrator Energy Gun Wave Gun Energy Cannon Disruptor Cannon Ballistic Gun Improved KE Penetrator Ballistic Cannon Heavy Flak Cannon Launcher Long-range Missile Launcher Impact Weapon Shock Maul Slashing Weapon Ripper Build | -11 -10 -9 -8 -8 -7 -7 -7 -6 -5 -5 -5 -4 -3 ------- Run | Scr Mat Mat Mat Sto Fac Low Low Fac Fac Ext Cet Fac Res Slots Evolved 14 | . . 2 2 . 2 . . 2 2 . . 2 2 Power 1 | . . . . . . . . . . . . . 1 Propulsion . | . . . . . . . . . . . . . . Utility 10 | . . 2 1 . 1 . . 2 1 . . 2 1 Weapon 3 | . . . 1 . 1 . . . 1 . . . . Parts Attached 248 | 5 3 18 7 17 14 5 . 77 52 13 14 17 6 Power 21 | 1 1 3 . . 1 1 . 6 4 . . 3 1 Engine 15 | 1 1 3 . . 1 1 . 5 3 . . . . Core 2 | . . . . . . . . 1 1 . . . . Reactor 4 | . . . . . . . . . . . . 3 1 Propulsion 30 | 2 . 3 1 1 2 . . 7 11 1 2 . . Treads 23 | 2 . 3 1 1 2 . . 7 4 1 2 . . Leg 5 | . . . . . . . . . 5 . . . . Wheel 2 | . . . . . . . . . 2 . . . . Hover . | . . . . . . . . . . . . . . Flight . | . . . . . . . . . . . . . . Utility 85 | . 2 4 4 5 5 . . 22 18 5 4 12 4 Device 47 | . . 2 1 1 3 . . 13 10 3 . 11 3 Storage 7 | . 1 1 . . 1 . . 1 3 . . . . Processor 8 | . 1 . 1 . . . . 1 1 1 1 1 1 Hackware 3 | . . . . 2 . . . . 1 . . . . Protection 20 | . . 1 2 2 1 . . 7 3 1 3 . . Artifact . | . . . . . . . . . . . . . . Weapon 112 | 2 . 8 2 11 6 4 . 42 19 7 8 2 1 Energy Gun 2 | . . . . . . . . . 2 . . . . Energy Cannon 2 | . . . . . . . . 1 1 . . . . Ballistic Gun 51 | 2 . 6 2 6 4 1 . 9 6 5 7 2 1 Ballistic Cannon 28 | . . . . 2 1 1 . 17 5 1 1 . . Launcher 27 | . . 2 . 2 1 2 . 15 5 . . . . Special Weapon . | . . . . . . . . . . . . . . Impact Weapon 1 | . . . . 1 . . . . . . . . . Slashing Weapon 1 | . . . . . . . . . . 1 . . . Piercing Weapon . | . . . . . . . . . . . . . . Special Melee Weapon . | . . . . . . . . . . . . . . Unidentified Prototypes 11 | . . 2 . 1 . . . . 3 . 3 2 . Parts Lost 55 | . . 2 . 3 . 1 . 16 20 2 . 6 5 Power 4 | . . . . . . 1 . 1 1 . . . 1 Propulsion 7 | . . . . . . . . 2 5 . . . . Utility 26 | . . 2 . 3 . . . 7 6 1 . 5 2 Weapon 18 | . . . . . . . . 6 8 1 . 1 2 Highest Loss Streak 8 | . . 1 . 2 . 1 . 3 8 2 . 3 5 Average Slot Usage (%) 91 | . 96 93 88 87 99 97 100 95 86 84 94 91 89 Engine 5 | . 14 11 9 9 7 4 7 5 4 . . . . Treads 11 | . 28 21 18 18 14 15 15 12 5 5 5 5 4 Device 18 | . . 15 16 11 20 23 23 19 20 15 17 27 24 Storage 3 | . 11 9 . . 2 . . . 4 5 5 5 4 Processor 12 | . 12 11 9 9 7 7 7 13 13 17 17 16 19 Hackware 4 | . . . . 4 7 7 7 6 5 5 5 5 4 Protection 5 | . . 2 9 8 7 7 7 9 2 5 5 . . Ballistic Gun 17 | . 28 21 27 25 22 22 23 14 6 13 23 22 22 Ballistic Cannon 6 | . . . . . 7 6 7 10 16 1 5 2 . Naked Turns . | . . . . . . . . . . . . . . Heaviest Build 91 | 7 11 22 34 36 45 35 29 65 91 69 72 74 77 Greatest Support 80 | 40 40 40 40 40 42 42 42 58 58 70 80 80 80 Greatest Overweight (x) 29 | . . . . . 1 . . 2 29 1 . . . Average Overweight (x) . | . . . . . . . . . 1 . . . . Largest Inventory Capacity 10 | 4 4 4 4 4 10 4 4 8 4 4 4 4 4 Average Capacity 4 | 4 4 4 4 4 5 4 4 4 4 4 4 4 4 Most Carried 4 | 4 3 4 4 4 4 4 4 4 4 4 4 4 4 Average Carried 2 | . . 1 2 3 2 3 3 2 1 1 2 1 3 Final Capacity 4 | 4 4 4 4 4 4 4 4 4 4 4 4 4 4 Final Carried 4 | . 2 3 4 4 4 4 4 3 . 4 2 4 2 Class Distribution -------------------- 23% | Hacker-Tank 20% | Scavenger-Gunner 18% | Scavenger-Tank 10% | Mutant 8% | Hacker-Gunner 5% | Hacker-Mutant 5% | Gunner 3% | Scavenger-Mutant Dominant Class ---------------- Mutant | -10/Materials Mutant | -9/Materials Gunner | -8/Materials Gunner | -8/Storage Hacker-Tank | -7/Factory Hacker-Tank | -7/Lower Caves Hacker-Tank | -7/Lower Caves Scavenger-Tank | -6/Factory Hacker-Tank | -5/Factory Scavenger-Gunner | -5/Extension Scavenger-Gunner | -5/Cetus Scavenger-Gunner | -4/Factory Scavenger-Gunner | -3/Research Resources | -11 -10 -9 -8 -8 -7 -7 -7 -6 -5 -5 -5 -4 -3 ----------- Run | Scr Mat Mat Mat Sto Fac Low Low Fac Fac Ext Cet Fac Res Matter Collected 14639 | 274 311 518 240 843 767 342 85 4497 3737 451 443 1445 686 Remotely 7602 | . . 181 240 99 642 342 85 1651 1942 360 443 931 686 Salvage Created 21793 | 96 609 911 366 1424 1010 338 141 6099 3909 880 575 3747 1688 Parts 1020 | 3 52 69 18 73 56 20 6 241 171 52 31 148 80 Haulers Intercepted 17 | . 2 2 1 4 2 . . 2 2 1 . 1 . Recyclers Shooed 31 | . 4 . . . 1 . . 18 3 2 . 3 . Parts Field Recycled . | . . . . . . . . . . . . . . Retrieved Matter . | . . . . . . . . . . . . . . Parts Self-Destructed 37 | . . . . . . 27 10 . . . . . . Prevented . | . . . . . . . . . . . . . . Kills | -11 -10 -9 -8 -8 -7 -7 -7 -6 -5 -5 -5 -4 -3 ------- Run | Scr Mat Mat Mat Sto Fac Low Low Fac Fac Ext Cet Fac Res Combat Hostiles Destroyed 287 | . 8 19 6 23 11 10 3 77 55 7 9 39 20 Melee 2 | . . . . 1 . . . . . 1 . . . Guns 171 | . 8 13 6 15 6 6 2 32 12 6 9 36 20 Cannons 75 | . . . . . 2 . 1 32 37 . . 3 . AOE 37 | . . 6 . 5 3 4 . 13 6 . . . . Classes Destroyed 18 | 1 6 3 1 2 1 . . 4 . . . . . Worker 44 | . 2 2 . 4 3 . . 12 16 . . 4 1 Builder 38 | . 2 4 . 2 1 . . 11 8 2 . 8 . Tunneler 6 | . . . 1 . . . . 3 2 . . . . Hauler 17 | . 2 2 1 4 2 . . 2 2 1 . 1 . Recycler 46 | 1 3 2 . 2 5 . . 17 10 1 . 5 . Carrier 1 | . . . . . . . . 1 . . . . . Mechanic 3 | . . . . . . . . 2 . . . 1 . Operator 9 | . . 1 . 1 1 . . 3 1 1 . 1 . Watcher 20 | . 1 2 . 1 5 . . 4 3 1 . 1 2 Swarmer 43 | . 6 10 . 4 4 5 1 12 . . 1 . . Grunt 126 | . 2 4 5 8 5 2 1 37 30 2 2 17 11 Brawler 13 | . . . . 2 . . . 4 1 . . 4 2 Duelist 11 | . . 1 1 2 . . . 4 2 . . . 1 Protector 7 | . . . . . . . . 2 3 . . 2 . Sentry 34 | . . 4 . 6 . . 1 8 8 1 . 3 3 Hunter 19 | . . . . 1 . 2 . 5 4 2 . 4 1 Programmer 26 | . . . . . 2 1 . 4 7 . . 9 3 Behemoth 2 | . . . . . . . . 1 . 1 . . . Cetus Guard 6 | . . . . . . . . . . . 6 . . Decomposer 2 | . . . . . . 2 . . . . . . . Thug 2 | . . . . . . . . . . 2 . . . Best Kill Streak 23 | 1 5 9 5 9 6 4 3 18 23 3 3 14 11 Combat Bots Only 10 | . 3 4 5 9 4 4 3 10 7 1 3 10 10 Max Kills in Single Turn 5 | 1 2 3 1 3 3 2 1 4 2 3 1 5 3 Gunslinging 1 | . 1 1 . 1 . . . . . . . 1 1 Exploded 3 | . . 3 . 3 2 2 . 2 2 . . . . Melee 1 | . . . . 1 . . . . . 1 . . . Uniques/NPCs Destroyed . | . . . . . . . . . . . . . . Combat | -11 -10 -9 -8 -8 -7 -7 -7 -6 -5 -5 -5 -4 -3 -------- Run | Scr Mat Mat Mat Sto Fac Low Low Fac Fac Ext Cet Fac Res Damage Taken 11278 | . 168 513 334 956 173 411 35 3693 2644 667 64 1173 447 Core 1400 | . 27 88 26 75 38 9 . 391 581 53 . 112 . Absorbed by Shields 1555 | . . . . 14 68 82 14 198 656 238 60 126 99 Core Remaining (%) 77 | 100 89 78 . 81 . . 93 54 . . 36 90 . Volleys Fired 732 | 4 32 57 17 66 37 16 5 206 138 37 12 69 36 Largest 5 | 2 2 2 3 3 4 4 4 4 5 5 5 5 5 Hottest 273 | 40 40 55 71 90 133 133 122 212 273 177 188 188 173 Shots Fired 2530 | 8 64 110 51 193 148 62 20 705 543 98 60 305 163 Gun 1701 | 8 64 103 51 184 109 45 15 393 154 77 48 287 163 Cannon 780 | . . . . 4 37 13 5 296 374 21 12 18 . Launcher 49 | . . 7 . 5 2 4 . 16 15 . . . . Special . | . . . . . . . . . . . . . . Kinetic 2453 | 8 64 103 51 188 146 58 20 688 515 84 60 305 163 Thermal 1 | . . . . . . . . . 1 . . . . Explosive 49 | . . 7 . 5 2 4 . 16 15 . . . . Electromagnetic 27 | . . . . . . . . 1 12 14 . . . Robot Hit Streak 81 | 5 16 31 32 51 31 20 32 51 41 81 16 62 72 Robot Miss Streak 8 | 1 2 2 1 1 3 4 . 6 8 1 1 2 1 Penetration Max 1 | . . . . . 1 1 . 1 1 1 . 1 1 Secondary Targets 23 | . 4 3 2 2 . . . . . . . 5 7 Max Gunslinging Chain 1 | . 1 1 1 1 . . . . . . . 1 1 Shots Hit Robots 1881 | 7 51 85 42 156 104 39 13 528 387 87 31 221 130 Core Hits 1266 | 2 23 40 17 57 42 16 5 415 377 39 15 148 70 Critical Hits 148 | . 1 2 . 2 1 . 1 13 20 10 9 59 30 Critical Kills 52 | . 1 1 . 1 . . . 6 7 3 5 18 10 Critical Parts Destroyed 79 | . . 1 . 1 1 . 1 7 13 5 3 33 14 Melee Attacks 17 | . . . . 16 . . . . . 1 . . . Impact 16 | . . . . 16 . . . . . . . . . Slashing 1 | . . . . . . . . . . 1 . . . Piercing . | . . . . . . . . . . . . . . Sneak Attacks 1 | . . . . . . . . . . 1 . . . Combat Hostiles . | . . . . . . . . . . . . . . Follow-up Attacks . | . . . . . . . . . . . . . . Damage Inflicted 54036 | 85 648 1648 705 2996 2496 1177 252 16016 12598 2192 845 8625 3753 Guns 32032 | 85 648 1242 705 2132 1722 628 205 7105 3597 1746 780 7684 3753 Cannons 13722 | . . . . . 441 74 47 5389 7160 327 65 219 . Explosions 7594 | . . 406 . 395 327 475 . 3471 1838 . . 682 . Melee 553 | . . . . 469 . . . . . 84 . . . Ramming 135 | . . . . . 6 . . 51 3 35 . 40 . Kinetic 45397 | 85 648 1242 705 2132 2163 702 252 12494 10632 1841 845 7903 3753 Thermal 1186 | . . . . . . . . 428 203 . . 555 . Explosive 6109 | . . 406 . 395 327 475 . 2934 1572 . . . . Electromagnetic 656 | . . . . . . . . 109 188 232 . 127 . Impact 469 | . . . . 469 . . . . . . . . . Slashing 84 | . . . . . . . . . . 84 . . . Piercing . | . . . . . . . . . . . . . . Highest Corruption 12 | . . . . . . 1 1 5 2 2 2 5 12 Average Corruption 2 | . . . . . . 1 1 4 1 2 2 4 1 Corruption Purged 3 | . . . . . . . . 2 1 . . . . Effects 110 | . . . . . . . . 41 18 16 2 33 . Message Errors 17 | . . . . . . . . 8 1 3 . 5 . Matter Fused 15 | . . . . . . . . 10 . . . 5 . Heat Flow Errors 9 | . . . . . . . . 2 1 3 1 2 . Energy Discharges 9 | . . . . . . . . 2 3 2 . 2 . Parts Rejected 1 | . . . . . . . . 1 . . . . . Data Loss (minor) 14 | . . . . . . . . 4 4 4 . 2 . Misfires 2 | . . . . . . . . . . . . 2 . Targeting Errors 37 | . . . . . . . . 14 7 3 1 12 . Weapon Failures 6 | . . . . . . . . . 2 1 . 3 . Overload Shots . | . . . . . . . . . . . . . . Overflow Damage 683 | . . 17 . 47 95 1 20 287 168 . . 48 . Projectiles 256 | . . . . . 37 1 20 132 66 . . . . Explosions 380 | . . 17 . . 58 . . 155 102 . . 48 . Melee 47 | . . . . 47 . . . . . . . . . Knockbacks 129 | . . . . . 2 1 . 48 75 1 1 1 . Impact 1 | . . . . . . . . . . . . 1 . Kinetic 126 | . . . . . 2 1 . 48 73 1 1 . . Secondary 2 | . . . . . . . . . 2 . . . . Self-Inflicted Damage 277 | . . 50 . 26 . 56 . 41 81 . . 23 . Shots 11 | . . 2 . 1 . 2 . 2 3 . . 1 . Rammed 34 | . . . . . 3 . . 18 1 6 . 6 . Targets Rammed 34 | . . . . . 3 . . 18 1 6 . 6 . Kicked . | . . . . . . . . . . . . . . Crushed . | . . . . . . . . . . . . . . Highest Temperature 403 | . . 19 306 117 269 114 147 403 316 171 117 196 196 Average Temperature 75 | . . 6 126 29 83 38 63 100 72 34 19 85 87 Received Heat Transfer 3182 | . 48 171 207 531 36 21 18 1014 623 91 . 311 111 Effects 10 | . . . . . . . . 8 2 . . . . Shutdowns 1 | . . . . . . . . 1 . . . . . Energy Bleed 3 | . . . . . . . . 3 . . . . . Interference 6 | . . . . . . . . 4 2 . . . . Siege Activations . | . . . . . . . . . . . . . . Robots Corrupted . | . . . . . . . . . . . . . . Combat Hostiles . | . . . . . . . . . . . . . . Parts Fried 5 | . . . . 3 . . . . 1 . . . 1 Impact Corruptions 4 | . . . . 4 . . . . . . . . . Robots Melted . | . . . . . . . . . . . . . . Combat Hostiles . | . . . . . . . . . . . . . . Parts Melted . | . . . . . . . . . . . . . . Heat Transferred 750 | . . . . . . . . 250 150 . . 350 . Parts Sabotaged 6 | . . . . . . . . . 2 . . . 4 Parts Stolen . | . . . . . . . . . . . . . . Parts Stripped . | . . . . . . . . . . . . . . Power Chain Reactions . | . . . . . . . . . . . . . . Missiles Intercepted . | . . . . . . . . . . . . . . Alert | -11 -10 -9 -8 -8 -7 -7 -7 -6 -5 -5 -5 -4 -3 ------- Run | Scr Mat Mat Mat Sto Fac Low Low Fac Fac Ext Cet Fac Res Peak Influence 2223 | 5 285 450 305 567 474 . . 1822 2223 1127 655 1557 1306 Average Influence 786 | 2 161 183 222 267 346 . . 1067 1320 600 419 859 1044 Maximum Alert Level 5 | . 1 2 1 2 2 . . 5 5 4 2 4 4 Low Security (%) 14 | 100 75 55 44 43 . . . 6 . . . . . Level 1 18 | . 24 36 55 30 66 . . 6 . 4 63 24 . Level 2 17 | . . 7 . 26 33 . . 11 . 81 36 4 6 Level 3 13 | . . . . . . . . 10 26 . . 40 47 Level 4 28 | . . . . . . . . 51 49 14 . 30 45 Level 5 8 | . . . . . . . . 12 24 . . . . High Security . | . . . . . . . . . . . . . . Max Security . | . . . . . . . . . . . . . . Squads Dispatched 87 | . 2 1 1 6 4 . . 25 27 3 1 13 4 Investigation 17 | . 2 . . 2 . . . 5 3 1 1 1 2 Extermination 13 | . . . . . 1 . . 4 4 . . 3 1 Reinforcement 22 | . . 1 1 1 3 . . 6 6 2 . 2 . Assault 16 | . . . . . . . . 5 7 . . 3 1 Garrison 19 | . . . . 3 . . . 5 7 . . 4 . Intercept . | . . . . . . . . . . . . . . Construction Impeded 10 | . . . . . 1 . . 5 2 . . 2 . Haulers Reinforced 3 | . . . . . 1 . . . 2 . . . . Stealth | -11 -10 -9 -8 -8 -7 -7 -7 -6 -5 -5 -5 -4 -3 --------- Run | Scr Mat Mat Mat Sto Fac Low Low Fac Fac Ext Cet Fac Res Distress Signals 16 | . . 3 . . 2 . . 1 3 1 2 1 3 Communications Jammed . | . . . . . . . . . . . . . . Distress Signals . | . . . . . . . . . . . . . . Times Spotted 413 | . 9 27 7 27 19 13 2 99 97 17 13 52 31 Peak Tracking Total 8 | . 3 7 4 4 4 7 2 5 8 5 5 6 8 Tactical Retreats 11 | . . 1 . . . . . 4 2 . . 4 . Traps | -11 -10 -9 -8 -8 -7 -7 -7 -6 -5 -5 -5 -4 -3 ------- Run | Scr Mat Mat Mat Sto Fac Low Low Fac Fac Ext Cet Fac Res Traps Triggered 8 | . . . . 1 . . . 5 2 . . . . Indirectly . | . . . . . . . . . . . . . . Trap Hack Attempts . | . . . . . . . . . . . . . . Triggered . | . . . . . . . . . . . . . . Disarmed . | . . . . . . . . . . . . . . Reprogrammed 3 | . 3 . . . . . . . . . . . . Reused 1 | . 1 . . . . . . . . . . . . Traps Extracted . | . . . . . . . . . . . . . . Installed . | . . . . . . . . . . . . . . Triggered 1 | . 1 . . . . . . . . . . . . Machines | -11 -10 -9 -8 -8 -7 -7 -7 -6 -5 -5 -5 -4 -3 ---------- Run | Scr Mat Mat Mat Sto Fac Low Low Fac Fac Ext Cet Fac Res Machines Disabled 84 | . . 1 . 6 1 1 . 44 19 3 3 6 . Max in Single Turn 16 | . . 1 . 2 1 1 . 16 4 1 1 4 . Garrison Access 1 | . . . . . . . . 1 . . . . . Energy Cycler 1 | . . . . . . . . . . 1 . . . Machines Sabotaged . | . . . . . . . . . . . . . . Garrisons Compromised . | . . . . . . . . . . . . . . Overloaded Fab Kills . | . . . . . . . . . . . . . . Fab Network Shutdowns 1 | . . . . . . . . . . . . 1 . Hacking | -11 -10 -9 -8 -8 -7 -7 -7 -6 -5 -5 -5 -4 -3 --------- Run | Scr Mat Mat Mat Sto Fac Low Low Fac Fac Ext Cet Fac Res Machines Accessed 66 | . 3 5 2 9 2 1 . 11 8 11 3 8 3 Terminals 37 | . 2 2 2 6 1 1 . 5 1 10 3 3 1 Fabricators 5 | . . . . . . . . 1 1 . . 2 1 Repair Stations 8 | . . 1 . 1 1 . . 1 3 . . . 1 Recycling Units 10 | . 1 2 . 1 . . . 2 1 1 . 2 . Scanalyzers 1 | . . . . . . . . 1 . . . . . Garrison Access 5 | . . . . 1 . . . 1 2 . . 1 . Total Hacks 186 | . 14 14 6 20 5 4 . 34 24 25 12 20 8 Successful 111 | . 9 10 3 16 5 4 . 16 14 14 6 11 3 Failed 75 | . 5 4 3 4 . . . 18 10 11 6 9 5 Catastrophic 13 | . 1 . . 2 . . . 5 . 3 . 2 . Database Lockouts . | . . . . . . . . . . . . . . Manual 79 | . 8 4 3 13 1 . . 19 9 11 1 9 1 Terminals 111 | . 11 5 6 14 3 4 . 21 3 23 12 7 2 Fabricators 15 | . . . . . . . . 3 3 . . 6 3 Repair Stations 24 | . . 5 . 2 2 . . 2 10 . . . 3 Recycling Units 21 | . 3 4 . 1 . . . 4 2 2 . 5 . Scanalyzers 1 | . . . . . . . . 1 . . . . . Garrison Access 14 | . . . . 3 . . . 3 6 . . 2 . Terminal Hacks 60 | . 8 4 3 9 2 4 . 8 1 11 6 3 1 Record 10 | . . . . . . 4 . . . . 6 . . Robot Schematic 3 | . . . . 1 . . . 1 . . . 1 . Robot Analysis 13 | . 2 2 3 2 . . . 3 1 . . . . Open Door 7 | . . . . 3 . . . . . 4 . . . Level Access Points 6 | . 2 1 . 1 . . . 1 . . . 1 . Terminal Index 3 | . . . . . . . . 2 . 1 . . . Fabricator Index 1 | . . . . . . . . 1 . . . . . Unreport Threat 5 | . . . . . . . . . . 4 . . 1 Locate Traps 3 | . 1 . . 1 . . . . . . . 1 . Reprogram Traps 1 | . 1 . . . . . . . . . . . . Dispatch Records 1 | . . . . . . . . . . 1 . . . Transport Status 1 | . 1 . . . . . . . . . . . . Recall Reinforcements 1 | . . . . . . . . . . 1 . . . Registered Components 3 | . 1 1 . 1 . . . . . . . . . Registered Prototypes 1 | . . . . . 1 . . . . . . . . Zone Layout 1 | . . . . . 1 . . . . . . . . Fabricator Hacks 10 | . . . . . . . . 1 3 . . 5 1 Load Schematic 4 | . . . . . . . . 1 1 . . 2 . Build 6 | . . . . . . . . . 2 . . 3 1 Repair Station Hacks 15 | . . 4 . 2 2 . . 1 5 . . . 1 Scan Component 9 | . . 2 . 1 1 . . 1 3 . . . 1 Repair 6 | . . 2 . 1 1 . . . 2 . . . . Recycling Unit Hacks 8 | . . 2 . 1 . . . 1 2 1 . 1 . Retrieve Components 8 | . . 2 . 1 . . . 1 2 1 . 1 . Scanalyzer . | . . . . . . . . . . . . . . Garrison Access Hacks 1 | . . . . 1 . . . . . . . . . Unlock Access 1 | . . . . 1 . . . . . . . . . Unauthorized Hacks 41 | . 2 . . 7 2 . . 12 9 5 . 4 . Terminals 9 | . 1 . . 2 1 . . 3 . 2 . . . Track 8 | . 1 . . 1 1 . . 3 . 2 . . . Botnet 1 | . . . . 1 . . . . . . . . . Fabricators . | . . . . . . . . . . . . . . Repair Stations . | . . . . . . . . . . . . . . Recycling Units . | . . . . . . . . . . . . . . Scanalyzers 1 | . . . . . . . . 1 . . . . . Extract 1 | . . . . . . . . 1 . . . . . Garrison Access 7 | . . . . 1 . . . 1 3 . . 2 . Reprogram 7 | . . . . 1 . . . 1 3 . . 2 . Data Cores Recovered 2 | . . . . . . . . 1 . . . 1 . Used . | . . . . . . . . . . . . . . Hacking Detections 54 | . 3 5 2 4 2 1 . 9 6 9 3 7 3 Full Trace Events 17 | . 3 . . 2 . 1 . 4 3 . 1 1 2 Feedback Events 1 | . . . . . . . . . . . . . 1 Corruption 1 | . . . . . . . . . . . . . 1 Feedback Blocked . | . . . . . . . . . . . . . . Robot Schematics Acquired 3 | . . . . 1 . . . 1 . . . 1 . Robots Built 9 | . . . . . . . . . 4 . . 2 3 Matter 1041 | . . . . . . . . . 438 . . 219 384 Time 222 | . . . . . . . . . 116 . . 38 68 Total Robot Build Rating 42 | . . . . . . . . . 12 . . 6 24 Part Schematics Acquired 4 | . . . . . . . . 4 . . . . . Parts Built . | . . . . . . . . . . . . . . Matter . | . . . . . . . . . . . . . . Time . | . . . . . . . . . . . . . . Total Part Build Rating . | . . . . . . . . . . . . . . Parts Repaired 6 | . . 2 . 1 1 . . . 2 . . . . Time 255 | . . 76 . 38 38 . . . 103 . . . . Parts Recycled . | . . . . . . . . . . . . . . Recycled Matter . | . . . . . . . . . . . . . . Retrieved Matter . | . . . . . . . . . . . . . . Retrieved Components 18 | . . 3 . 3 . . . 8 . 2 . 2 . Parts Scanalyzed . | . . . . . . . . . . . . . . Part Schematics Acquired . | . . . . . . . . . . . . . . Parts Damaged . | . . . . . . . . . . . . . . Bothacking | -11 -10 -9 -8 -8 -7 -7 -7 -6 -5 -5 -5 -4 -3 ------------ Run | Scr Mat Mat Mat Sto Fac Low Low Fac Fac Ext Cet Fac Res Used RIF Installer . | . . . . . . . . . . . . . . Robots Hacked . | . . . . . . . . . . . . . . Non-combat . | . . . . . . . . . . . . . . Combat . | . . . . . . . . . . . . . . Robot Hacks Applied . | . . . . . . . . . . . . . . Relay Couplers Released 2 | . . . . . . . . 2 . . . . . Machine Destruction 2 | . . . . . . . . 2 . . . . . Robots Rewired 10 | . . . . . . . . . . 10 . . . Allies Hacked . | . . . . . . . . . . . . . . Hacks Repelled . | . . . . . . . . . . . . . . Allies | -11 -10 -9 -8 -8 -7 -7 -7 -6 -5 -5 -5 -4 -3 -------- Run | Scr Mat Mat Mat Sto Fac Low Low Fac Fac Ext Cet Fac Res Total Allies 42 | . . . . 1 . . . 2 14 16 . 6 3 Largest Group 20 | . . . . 1 . . . 2 10 20 11 3 5 Highest-Rated Group 589 | . . . . 15 . . . 82 340 589 434 194 238 Highest-Rated Ally 156 | . . . . 15 . . . 41 49 156 156 142 56 Total Orders 4 | . . . . . . . . . 1 . 2 1 . ROAM 1 | . . . . . . . . . . . 1 . . FOLLOW 1 | . . . . . . . . . . . 1 . . EXPLORE 2 | . . . . . . . . . 1 . . 1 . Ally Attacks 344 | . . . . . . . . 10 123 113 45 24 29 Total Damage 8702 | . . . . . . . . 265 2358 2905 1183 628 1363 Kills 59 | . . . . . . . . . 22 16 9 2 10 Allies Corrupted . | . . . . . . . . . . . . . . Allies Melted 1 | . . . . . . . . . . . . . 1 Intel | -11 -10 -9 -8 -8 -7 -7 -7 -6 -5 -5 -5 -4 -3 ------- Run | Scr Mat Mat Mat Sto Fac Low Low Fac Fac Ext Cet Fac Res Robot Analysis Total 13 | . 2 2 3 2 . . . 3 1 . . . . Derelict Logs Recovered 2 | . . . . . . 2 . . . . . . . Drone Launches 5 | . . . . . . . . . 2 . . 3 . Drone Recoveries . | . . . . . . . . . . . . . . Exploration | -11 -10 -9 -8 -8 -7 -7 -7 -6 -5 -5 -5 -4 -3 ------------- Run | Scr Mat Mat Mat Sto Fac Low Low Fac Fac Ext Cet Fac Res Turns Passed 12778 | 83 402 982 232 1131 699 736 77 2894 2436 1079 440 1183 404 Spaces Moved 5634 | 48 183 429 98 489 298 425 39 1179 1019 518 221 527 161 Core 142 | 16 . . . . . . . . 126 . . . . Treads 5371 | 32 183 429 98 489 298 425 39 1179 772 518 221 527 161 Legs 101 | . . . . . . . . . 101 . . . . Wheels 20 | . . . . . . . . . 20 . . . . Hover . | . . . . . . . . . . . . . . Flight . | . . . . . . . . . . . . . . Fastest Speed 50 | 50 160 160 165 165 157 157 157 145 50 160 160 160 160 Average Speed 165 | 123 160 164 165 165 167 157 157 166 178 161 160 160 160 Slowest Speed 1500 | 160 160 165 165 165 185 157 157 200 1500 180 160 160 160 Overloaded Moves . | . . . . . . . . . . . . . . Propulsion Burnouts . | . . . . . . . . . . . . . . Robots Hopped . | . . . . . . . . . . . . . . Cave-ins Triggered . | . . . . . . . . . . . . . . Exploration Rate (%) 33 | 4 33 45 11 58 12 55 8 35 31 78 78 17 4 Regions Visited 13 Branch Regions 5 Pre-discovered Areas 2 | . . . . . . 2 . . . . . . . Known Exits Taken 5 | . 1 1 . 1 . . . 1 . . . 1 . Unknown Exits Taken 8 | 1 . . 1 . 1 1 1 . 1 1 1 . . Scrap Searched 6 | . . . . . . 3 3 . . . . . . Spaces Dug 18 | . . 7 . 1 . . . 5 . . . 5 . Terrain Destroyed 605 | . . 48 . 42 16 30 . 178 169 10 9 103 . Melee 1 | . . . . 1 . . . . . . . . . Projectile 161 | . . . . . 2 2 . 25 23 10 9 90 . AOE 443 | . . 48 . 41 14 28 . 153 146 . . 13 . Actions | -11 -10 -9 -8 -8 -7 -7 -7 -6 -5 -5 -5 -4 -3 --------- Run | Scr Mat Mat Mat Sto Fac Low Low Fac Fac Ext Cet Fac Res Total 7402 | 65 230 607 136 652 418 458 45 1625 1312 679 276 686 213 Wait 305 | . 1 76 . 46 38 8 . 41 45 4 11 35 . Move 5621 | 47 182 428 97 488 297 424 38 1178 1018 517 220 526 161 Hop . | . . . . . . . . . . . . . . Pick Up 226 | 7 8 17 9 12 16 3 1 63 36 19 9 20 6 Fast Attach . | . . . . . . . . . . . . . . Attach 134 | 5 3 8 5 6 6 1 . 33 37 9 6 11 4 Detach 8 | . . . . . . . . 1 7 . . . . Swap 114 | . . 10 2 11 8 4 . 44 15 4 8 6 2 Drop 136 | 2 4 11 6 7 13 2 1 41 14 11 10 10 4 Fire 732 | 4 32 57 17 66 37 16 5 206 138 37 12 69 36 Melee 17 | . . . . 16 . . . . . 1 . . . Ram . | . . . . . . . . . . . . . . Kick . | . . . . . . . . . . . . . . Crush 34 | . . . . . 3 . . 18 1 6 . 6 . Escape Stasis . | . . . . . . . . . . . . . . Rewire 73 | . . . . . . . . . . 71 . 2 . Trap . | . . . . . . . . . . . . . . Miscellaneous 2 | . . . . . . . . . 1 . . 1 . Route ------- -11/Scrapyard -10/Materials (discovered 4 exits: *Mat x3 / [*Min]) -9/Materials (discovered 3 exits: *Mat x3) -8/Materials -8/Storage (discovered 2 exits: *Fac / Gar) -7/Factory (discovered 2 exits: *Fac / *Low) -7/Lower Caves -7/Lower Caves -6/Factory (discovered 4 exits: *Fac x4) -5/Factory (discovered 2 exits: [*Upp] / *Ext) -5/Extension (discovered 2 exits: *Fac / *Cet) -5/Cetus (discovered 3 exits: *Fac x2 / [*Arc]) -4/Factory (discovered 5 exits: *Res x4 / [*Upp]) -3/Research History --------- Turn | Location | Event 6 | -11/Scrapyard | Discovered new exit (range 15) 84 | -11/Scrapyard | Entered Materials 92 | -10/Materials | Identified exit to Materials 121 | -10/Materials | Discovered new exit (range 12) 314 | -10/Materials | Build established: Mutant 486 | -10/Materials | Entered another Materials area 486 | -9/Materials | Evolved 2 slots: Utility x2 681 | -9/Materials | Identified exit to Materials 736 | -9/Materials | Repaired Minigun 776 | -9/Materials | Repaired Arm. Treads 1468 | -9/Materials | Entered another Materials area 1468 | -8/Materials | Evolved 2 slots: Utility x1, Weapon x1 1471 | -8/Materials | Discovered new exit (range 17) 1700 | -8/Materials | Entered Storage 1824 | -8/Storage | Build established: Gunner 2052 | -8/Storage | Repaired Minigun 2433 | -8/Storage | Identified exit to Factory 2458 | -8/Storage | Garrison activated, responded to threat 2500 | -8/Storage | Destroyed 9 combat bots 2714 | -8/Storage | Identified exit to Garrison 2831 | -8/Storage | Entered Factory 2831 | -7/Factory | Evolved 2 slots: Utility x1, Weapon x1 2999 | -7/Factory | Repaired Arm. Treads 3073 | -7/Factory | Discovered new exit (range 16) 3473 | -7/Factory | Build established: Hacker-Tank 3505 | -7/Factory | Discovered new exit (range 16) 3530 | -7/Factory | Entered Lower Caves 4041 | -7/Lower Caves | Encountered a Warlord checkpoint 4051 | -7/Lower Caves | Attracted the attention of an 0b10 base 4103 | -7/Lower Caves | Learned Armory emergency access door positions 4103 | -7/Lower Caves | Learned location of 1 exit from Proximity Caves 4146 | -7/Lower Caves | Learned Factory terminal intel 4236 | -7/Lower Caves | Learned 4 Factory zone layouts 4258 | -7/Lower Caves | Discovered new exit (range 6) 4266 | -7/Lower Caves | Entered another Lower Caves area 4331 | -7/Lower Caves | Discovered new exit (range 7) 4343 | -7/Lower Caves | Entered Factory 4343 | -6/Factory | Evolved 2 slots: Utility x2 4345 | -6/Factory | Loaded intel: 20 terminal locations 4659 | -6/Factory | Destroyed 7 combat bots 4802 | -6/Factory | Lost 3 parts (2u1w) 5043 | -6/Factory | First assault squad dispatched 5139 | -6/Factory | Garrison activated, responded to threat 5233 | -6/Factory | Destroyed 10 combat bots 5397 | -6/Factory | Identified exit to Factory 5559 | -6/Factory | Build established: Scavenger-Tank 5720 | -6/Factory | Spotted B-75 Beast 5746 | -6/Factory | Destroyed B-75 Beast 5829 | -6/Factory | Garrison activated, responded to threat 5899 | -6/Factory | Lost 3 parts (1n2w) 6011 | -6/Factory | Garrison activated, responded to threat 7237 | -6/Factory | Entered another Factory area 7237 | -5/Factory | Evolved 2 slots: Utility x1, Weapon x1 7310 | -5/Factory | Repaired Hvy. Flak Cannon 7332 | -5/Factory | Build established: Hacker-Tank 7381 | -5/Factory | Discovered new exit (range 13) 7540 | -5/Factory | Garrison activated, responded to threat 7837 | -5/Factory | First assault squad dispatched 7841 | -5/Factory | Garrison activated, responded to threat 7885 | -5/Factory | Destroyed 7 combat bots 8213 | -5/Factory | Build established: Scavenger-Tank 8271 | -5/Factory | Fabricated H-55 Commando? 8357 | -5/Factory | Fabricated H-55 Commando? 8974 | -5/Factory | Repaired Broken Recoil Nullifier? 9141 | -5/Factory | Destroyed 7 combat bots 9231 | -5/Factory | Destroyed 7 combat bots 9277 | -5/Factory | Lost 3 parts (3w) 9383 | -5/Factory | Core integrity fell below 50% 9409 | -5/Factory | Lost 8 parts (1p2n2u3w) 9428 | -5/Factory | Allied Derelicts emerged from ambush trap array 9565 | -5/Factory | Garrison activated, responded to threat 9626 | -5/Factory | Discovered new exit (range 9) 9670 | -5/Factory | High security lockdown imminent 9673 | -5/Factory | Entered Extension 9673 | -5/Extension | Accompanied by 9 allies 9702 | -5/Extension | Disrupted transfer network 9909 | -5/Extension | Rescued a captive Derelict 9909 | -5/Extension | Rescued a captive Derelict 10124 | -5/Extension | Rescued a captive Derelict 10125 | -5/Extension | Rescued a captive Derelict 10141 | -5/Extension | Rescued a captive Derelict 10184 | -5/Extension | Spotted B-75 Beast 10199 | -5/Extension | Spotted B-75 Beast 10203 | -5/Extension | Destroyed B-75 Beast 10234 | -5/Extension | Allies destroyed B-75 Beast 10392 | -5/Extension | Energy Cycler disabled 10394 | -5/Extension | Rescued a captive Derelict 10400 | -5/Extension | Rescued a captive Derelict 10436 | -5/Extension | Rescued A7 10569 | -5/Extension | Build established: Scavenger-Gunner 10683 | -5/Extension | Discovered new exit (range 10) 10684 | -5/Extension | Discovered new exit (range 6) 10752 | -5/Extension | Entered Cetus 10752 | -5/Cetus | Accompanied by 11 allies 10757 | -5/Cetus | Acquired a Cetus Manufacturing Module code from A7 10770 | -5/Cetus | Spotted Cetus Guard 10770 | -5/Cetus | Spotted Cetus Guard 10770 | -5/Cetus | Spotted Cetus Guard 10773 | -5/Cetus | Spotted Cetus Guard 10776 | -5/Cetus | Destroyed Cetus Guard 10781 | -5/Cetus | Allies destroyed Cetus Guard 10783 | -5/Cetus | Destroyed Cetus Guard 10787 | -5/Cetus | Destroyed Cetus Guard 10896 | -5/Cetus | Discovered new exit (range 21) 11030 | -5/Cetus | Cetus Manufacturing Module disabled 11052 | -5/Cetus | Failed to start Cetus Manufacturing Module 11075 | -5/Cetus | Discovered new exit (range 21) 11091 | -5/Cetus | Spotted Cetus Guard 11091 | -5/Cetus | Spotted Cetus Guard 11091 | -5/Cetus | Spotted Cetus Guard 11091 | -5/Cetus | Spotted Cetus Guard 11095 | -5/Cetus | Destroyed Cetus Guard 11107 | -5/Cetus | Allies destroyed Cetus Guard 11107 | -5/Cetus | Destroyed Cetus Guard 11111 | -5/Cetus | Destroyed Cetus Guard 11141 | -5/Cetus | Discovered new exit (range 22) 11160 | -5/Cetus | Met Revision 17 11192 | -5/Cetus | Entered Factory 11192 | -4/Factory | Accompanied by 3 allies 11192 | -4/Factory | Evolved 2 slots: Utility x2 11483 | -4/Factory | Fabricated H-55 Commando (x2) 11491 | -4/Factory | Local fabrication network quarantined 11542 | -4/Factory | P-70 Sage assimilated allied Commando 7b 11727 | -4/Factory | First assault squad dispatched 11901 | -4/Factory | Identified exit to Research 11990 | -4/Factory | Discovered new exit (range 22) 12036 | -4/Factory | Garrison activated, responded to threat 12038 | -4/Factory | Lost 3 parts (3u) 12098 | -4/Factory | Destroyed 10 combat bots 12343 | -4/Factory | Garrison activated, responded to threat 12375 | -4/Factory | Entered Research 12375 | -3/Research | Accompanied by 2 allies 12375 | -3/Research | Evolved 2 slots: Power x1, Utility x1 12470 | -3/Research | Fabricated B-74 Champion (x3) 12608 | -3/Research | P-80 Master assimilated allied Champion 8c 12646 | -3/Research | Destroyed 10 combat bots 12673 | -3/Research | First assault squad dispatched 12779 | -3/Research | System corruption reached 10% 12779 | -3/Research | Self-destructed Last Messages --------------- 12769_ System corrupted by crushing effect (+3). 12769_ Slug penetrates B-74 Champion. 12769_ Destroyed Hvy. Armor Plating. 12769_ Slug penetrates B-74 Champion. 12769_ B-74 Champion destroyed. 12773_ Slug penetrates B-74 Champion. 12773_ B-74 Champion suffers critical hit. 12773_ Destroyed Med. Treads. 12773_ Slug penetrates B-74 Champion. 12773_ B-74 Champion suffers critical hit. 12773_ Slug penetrates Wall. 12773_ Adv. Target Analyzer destroyed. 12775_ Imp. KE Penetrator destroyed. 12775_ System corrupted by crushing effect (+4). 12776_ Slug penetrates B-74 Champion. 12776_ Slug penetrates Wall. 12777_ K-01 Serf collects debris. 12778_ Lgt. Quantum Reactor destroyed. 12778_ System corrupted by crushing effect (+4). 12779_ R-10 Processor collects Phase Gun. Map ----- +----------------------------------------------------+ | ?????????????????????????????????????????????????? | | ?????????????????????????????????????????????????? | | ?????????????????????????????????????????????????? | | ?????????????????????????????????????????????????? | | ?????????????????????????????????????????????????? | | ?????????????????????????????????????????????????? | | ?????????????????????????????????????????????????? | | ?????????????????????????????????????????????????? | | ?????????????????????????????????????????????????? | | ????????????????????######???????????????????????? | | ????????????????????# ???????????????????????? | | ????????????????????# ???????????????????????? | | ????????????????????# ???????????????????????? | | ????????????????????k ???????????????????????? | | ????????????????????#% #???????????????????????? | | ????????????????????#%R #???????????????????????? | | ????????????????????# [ #???????????????????????? | | ????????????????????# #???????????????????????? | | ????????????????????# #???????????????????????? | | ????????????????????# #???????????????????????? | | ????????????????????# #???????????????????????? | | ????????????????????# =g#???????????????????????? | | ????????????????????# !!*#?????????????##########? | | ????????????????????# [%!############### #? | | ????????????????????# ![=b*%! # #? | | ????????????????????# =!!@[== # """#? | | ????????????????????# [!*/ * # T"#? | | ????????????????????# [ !![ + """#? | | ????????????????????####+##########|*[!# #? | | ??????????????????????????????????#[% %# = #? | | ??????????????????????????????????# ==!# #? | | ??????????????????????????????????#=!%*# #? | | ??????????????????????????????????# *=%##### ####? | | ??????????????????????????????????#%%==#???###???? | | ??????????????????????????????????#*%%%#?????????? | | ??????????????????????????????????#==*!#?????????? | | ??????????????????????????????????#[*[*#?????????? | | ??????????????????????????????????#=%!%#?????????? | | ?????????????????????????#######??# ! #?????????? | | ????????????????????????? ??#[*![#?????????? | | ?????????????????????????? ???#!!%=#?????????? | | ?????????????????????????? ???#=[%%#?????????? | | ??????????????????????????? ????#%*==#?????? ??? | | ??????????????????????????? ????#!%*[#????" """ | | ?????????????###############+######[![ #???"" """ | | ?????????????# [/=!%%#? """ """ | | ?????????????# !=!!==%#![ | | ?????????????# ![=**[%!! | | ?????????????# ! *!*==%%#= | | ?????????????# """ / ! ### %[!# | +----------------------------------------------------+ Best States ------------- Heat Dissipation 74 Coolant Potential 100 Energy Generation 41 Energy Capacity 500 Matter Stores 550 Matter Capacity 550 Sight Range 22 Robot Scan Range 22 Terrain Scan Density 10 Power Amplification 30 Armor Coverage 600 Resistance: KI 50 Resistance: TH 50 Resistance: EX 20 Resistance: EM 20 Resistance: I 20 Resistance: S 20 Resistance: P 20 Core Shielding 30 Phase Shifting 10 Evasion (%) 50 Targeting Accuracy 8 Target Analysis 8 Core Analysis 8 Recoil Reduction 8 Matter Filtering 30 Kinecelleration 40 Offensive Hacking 24 Item Schematics ----------------- Gravmag System | -6/Factory | Extracted Mni. Assault Cannon | -6/Factory | Extracted Adv. Signal Interpreter | -6/Factory | Extracted Ion Cannon | -6/Factory | Extracted Robot Schematics ------------------ H-55 Commando | -8/Storage | Hacked M-22 Extractor | -6/Factory | Hacked M-36 Artificer | -4/Factory | Hacked Fabricated ------------ H-55 Commando | x2 | -5/Factory H-55 Commando | x2 | -5/Factory H-55 Commando | x2 | -4/Factory B-74 Champion | x3 | -3/Research | Preloaded Alien Tech Used ----------------- None Achievements -------------- Project G-00 Challenges ------------ None Game ------ Seed ChainLightWeb Manual? 0 Play Time 02:08:45 Cumulative 245.8 hours Start 2020.08.07 @ 20:43:58 End 2020.08.07 @ 23:25:25 Sessions 1 Manual Loads 0 Difficulty Adventurer Special Mode None Game No. 104 Rogue 1 Adventurer 103 Explorer 0 Win Type - Total 1 Types 1/0/0/0/0/0/0 Lore% 33 Gallery% 60 Achievement% 45 Wizard Run 0 Options --------- ASCII 0 Keyboard 0 Movement Numpad Keybinds 0 Fullscreen 0 Font 12/Smallcaps Map View 83x54 Tactical HUD 1 Map Filters NONE Filters NONE Steam X RUN: 97c6b75c-3ec5-4b32-8d5b-1460f1be6a55